fUSD/lending_fUSD_20240828
["ID","MTS","AMOUNT","RATE_DAILY","PERIOD"]
[336491365,1724877261112,-737.98,0.0003863,120]
[336491366,1724877261146,-500.0,0.0003863,120]
[336491367,1724877261185,-651.88,0.0003863,120]
[336491368,1724877261223,-500.0,0.0003863,120]
[336491369,1724877261259,-500.0,0.0003863,120]
[336491370,1724877261296,-500.0,0.0003863,120]
[336491371,1724877261333,-850.15,0.0003863,120]
[336491372,1724877261375,-500.0,0.0003863,120]
[336491373,1724877261421,-688.24,0.0003863,120]
[336491374,1724877261456,-875.01,0.0003863,120]
[336491375,1724877261488,-500.0,0.0003863,120]
[336491376,1724877261520,-500.0,0.0003863,120]
[336491377,1724877261553,-500.0,0.0003863,120]
[336491378,1724877261585,-500.0,0.0003863,120]
[336491379,1724877261617,-500.0,0.0003863,120]
[336491380,1724877261653,-500.0,0.0003863,120]
[336491381,1724877261690,-500.0,0.0003863,120]
[336491382,1724877261750,-2005.14,0.0003863,120]
[336491383,1724877261813,-500.0,0.0003863,120]
[336491384,1724877261871,-500.0,0.0003863,120]
[336491385,1724877261927,-500.0,0.0003863,120]
[336491386,1724877261979,-500.0,0.0003863,120]
[336491387,1724877262037,-500.0,0.0003863,120]
[336491388,1724877262090,-500.0,0.0003863,120]
[336491389,1724877262137,-500.0,0.0003863,120]
[336491390,1724877262185,-500.0,0.0003863,120]
[336491391,1724877262232,-1667.8,0.0003863,120]
[336491392,1724877262279,-500.0,0.0003863,120]
[336491393,1724877262327,-500.0,0.0003863,120]
[336491394,1724877262374,-622.08,0.0003863,120]
[336491395,1724877262426,-509.71842104,0.0003863,120]
[336491396,1724877262479,-1188.65,0.0003863,120]
[336491397,1724877262530,-500.0,0.0003863,120]
[336491398,1724877262582,-1093.11,0.0003863,120]
[336491399,1724877262630,-500.0,0.0003863,120]
[336491400,1724877262677,-500.0,0.0003863,120]
[336491401,1724877262732,-507.47579398,0.0003863,120]
[336491402,1724877262782,-500.0,0.0003863,120]
[336491403,1724877262835,-500.0,0.0003863,120]
[336491404,1724877262886,-500.0,0.0003863,120]
[336491405,1724877262954,-826.26,0.0003863,120]
[336491406,1724877263011,-626.46,0.0003863,120]
[336491407,1724877263061,-1982.83,0.0003863,120]
[336491408,1724877263116,-500.0,0.0003863,120]
[336491409,1724877263174,-783.01,0.0003863,120]
[336491410,1724877263220,-1396.82,0.0003863,120]
[336491411,1724877263270,-500.0,0.0003863,120]
[336491412,1724877263320,-500.0,0.0003863,120]
[336491413,1724877263370,-994.79,0.0003863,120]
[336491414,1724877263422,-500.0,0.0003863,120]
[336491415,1724877263473,-500.0,0.0003863,120]
[336491416,1724877263526,-500.0,0.0003863,120]
[336491417,1724877263577,-500.0,0.0003863,120]
[336491418,1724877263628,-500.0,0.0003863,120]
[336491419,1724877263682,-6832.54,0.0003863,120]
[336491420,1724877263738,-500.0,0.0003863,120]
[336491421,1724877263791,-500.0,0.0003863,120]
[336491422,1724877263845,-500.0,0.0003863,120]
[336491423,1724877263898,-1411.98,0.0003863,120]
[336491424,1724877263958,-927.77,0.0003863,120]
[336491425,1724877264016,-506.00535154,0.0003863,120]
[336491426,1724877264071,-500.0,0.0003863,120]
[336491427,1724877264123,-763.88,0.0003863,120]
[336491428,1724877264177,-500.0,0.0003863,120]
[336491429,1724877264233,-500.0,0.0003863,120]
[336491430,1724877264286,-637.95,0.0003863,120]
[336491431,1724877264339,-640.06,0.0003863,120]
[336491432,1724877264740,-500.0,0.0003863,120]
[336491433,1724877264776,-507.80708161,0.0003863,120]
[336491434,1724877264810,-3313.74,0.0003863,120]
[336491435,1724877264843,-500.0,0.0003863,120]
[336491436,1724877264875,-500.0,0.0003863,120]
[336491437,1724877264911,-1676.4,0.0003863,120]
[336491438,1724877264949,-500.0,0.0003863,120]
[336491439,1724877264984,-500.0,0.0003863,120]
[336491440,1724877265020,-500.0,0.0003863,120]
[336491441,1724877265054,-500.0,0.0003863,120]
[336491442,1724877265088,-584.62050837,0.0003863,120]
[336491443,1724877265125,-500.0,0.0003863,120]
[336491444,1724877265158,-500.0,0.0003863,120]
[336491445,1724877265199,-500.0,0.0003863,120]
[336491446,1724877265235,-500.0,0.0003863,120]
[336491447,1724877265268,-500.0,0.0003863,120]
[336491448,1724877265301,-500.0,0.0003863,120]
[336491449,1724877265337,-500.0,0.0003863,120]
[336491450,1724877265370,-568.91,0.0003863,120]
[336491451,1724877265404,-1236.43,0.0003863,120]
[336491452,1724877265443,-1622.16,0.0003863,120]
[336491453,1724877265476,-500.0,0.0003863,120]
[336491454,1724877265509,-537.04,0.0003863,120]
[336491455,1724877265542,-500.0,0.0003863,120]
[336491456,1724877265575,-500.0,0.0003863,120]
[336491457,1724877265608,-500.0,0.0003863,120]
[336491458,1724877265642,-742.97,0.0003863,120]
[336491459,1724877265675,-500.0,0.0003863,120]
[336491460,1724877265709,-500.0,0.0003863,120]
[336491461,1724877265741,-3565.67,0.0003863,120]
[336491462,1724877265773,-500.0,0.0003863,120]
[336491463,1724877265807,-500.0,0.0003863,120]
[336491464,1724877265839,-543.04,0.0003863,120]
[336491465,1724877265870,-500.0,0.0003863,120]
[336491466,1724877265903,-500.0,0.0003863,120]
[336491467,1724877265938,-1803.01,0.0003863,120]
[336491468,1724877265970,-3262.73,0.0003863,120]
[336491469,1724877266003,-500.0,0.0003863,120]
[336491470,1724877266036,-500.0,0.0003863,120]
[336491471,1724877266067,-975.02,0.0003863,120]
[336491472,1724877266099,-500.0,0.0003863,120]
[336491473,1724877266131,-500.0,0.0003863,120]
[336491474,1724877266163,-799.71,0.0003863,120]
[336491475,1724877266194,-769.31,0.0003863,120]
[336491476,1724877266223,-500.0,0.0003863,120]
[336491477,1724877266254,-859.7,0.0003863,120]
[336491478,1724877266285,-500.0,0.0003863,120]
[336491479,1724877266317,-2634.91,0.0003863,120]
[336491480,1724877266351,-500.0,0.0003863,120]
[336491481,1724877266386,-500.0,0.0003863,120]
[336491482,1724877266424,-500.0,0.0003863,120]
[336491483,1724877266457,-3164.55,0.0003863,120]
[336491484,1724877266490,-1619.03,0.0003863,120]
[336491485,1724877266522,-500.0,0.0003863,120]
[336491486,1724877266554,-500.0,0.0003863,120]
[336491487,1724877266602,-500.0,0.0003863,120]
[336491488,1724877266653,-500.0,0.0003863,120]
[336491489,1724877266688,-535.22,0.0003863,120]
[336491490,1724877266720,-500.0,0.0003863,120]
[336491491,1724877266753,-1805.09,0.0003863,120]
[336491492,1724877266786,-500.0,0.0003863,120]
[336491493,1724877266819,-500.0,0.0003863,120]
[336491494,1724877266852,-500.0,0.0003863,120]
[336491495,1724877266885,-2266.76,0.0003863,120]
[336491496,1724877266921,-1060.54,0.0003863,120]
[336491497,1724877266953,-1486.92,0.0003863,120]
[336491498,1724877266987,-3141.14,0.0003863,120]
[336491499,1724877267023,-500.0,0.0003863,120]
[336491500,1724877267056,-1000.0,0.0003863,120]
[336491501,1724877267088,-500.0,0.0003863,120]
[336491502,1724877267120,-1391.03,0.0003863,120]
[336491503,1724877267152,-500.0,0.0003863,120]
[336491504,1724877267187,-500.0,0.0003863,120]
[336491505,1724877267220,-869.37,0.0003863,120]
[336491506,1724877267251,-500.0,0.0003863,120]
[336491507,1724877267281,-500.0,0.0003863,120]
[336491508,1724877267313,-500.0,0.0003863,120]
[336491509,1724877267349,-500.0,0.0003863,120]
[336491510,1724877267381,-500.0,0.0003863,120]
[336491511,1724877267417,-5964.72,0.0003863,120]
[336491512,1724877267449,-500.0,0.0003863,120]
[336491513,1724877267480,-500.0,0.0003863,120]
[336491514,1724877267512,-500.0,0.0003863,120]
[336491515,1724877267543,-500.0,0.0003863,120]
[336491516,1724877267574,-1221.75,0.0003863,120]
[336491517,1724877267607,-3703.3,0.0003863,120]
[336491518,1724877267645,-500.0,0.0003863,120]
[336491519,1724877267681,-694.14,0.0003863,120]
[336491520,1724877267718,-500.0,0.0003863,120]
[336491521,1724877267753,-814.43,0.0003863,120]
[336491522,1724877267786,-583.64,0.0003863,120]
[336491523,1724877267818,-4496.05,0.0003863,120]
[336491524,1724877267852,-500.0,0.0003863,120]
[336491525,1724877267884,-507.67030711,0.0003863,120]
[336491526,1724877267923,-500.0,0.0003863,120]
[336491527,1724877267956,-500.0,0.0003863,120]
[336491528,1724877267995,-621.9,0.0003863,120]
[336491529,1724877268034,-1041.08,0.0003863,120]
[336491530,1724877268073,-500.0,0.0003863,120]
[336491531,1724877268110,-813.98,0.0003863,120]
[336491532,1724877268148,-500.0,0.0003863,120]
[336491533,1724877268386,-1475.88,0.0003863,120]
[336491534,1724877268425,-500.0,0.0003863,120]
[336491535,1724877268458,-500.0,0.0003863,120]
[336491536,1724877268495,-500.0,0.0003863,120]
[336491537,1724877268532,-1055.87,0.0003863,120]
[336491538,1724877268568,-586.48,0.0003863,120]
[336491539,1724877268604,-500.0,0.0003863,120]
[336491540,1724877268633,-500.0,0.0003863,120]
[336491541,1724877268665,-500.0,0.0003863,120]
[336491542,1724877268696,-500.0,0.0003863,120]
[336491543,1724877268727,-562.02,0.0003863,120]
[336491544,1724877268759,-5156.31,0.0003863,120]
[336491545,1724877268792,-500.0,0.0003863,120]
[336491546,1724877268826,-1524.84,0.0003863,120]
[336491547,1724877268860,-500.0,0.0003863,120]
[336491548,1724877268893,-500.0,0.0003863,120]
[336491549,1724877268925,-500.0,0.0003863,120]
[336491550,1724877268958,-1594.89,0.0003863,120]
[336491551,1724877268991,-500.0,0.0003863,120]
[336491552,1724877269022,-1183.62,0.0003863,120]
[336491553,1724877269053,-530.18669419,0.0003863,120]
[336491554,1724877269082,-1413.5,0.0003863,120]
[336491555,1724877269111,-500.0,0.0003863,120]
[336491556,1724877269142,-500.0,0.0003863,120]
[336491557,1724877269174,-500.0,0.0003863,120]
[336491558,1724877269205,-993.61,0.0003863,120]
[336491559,1724877269234,-3811.75,0.0003863,120]
[336491560,1724877269264,-500.0,0.0003863,120]
[336491561,1724877269294,-3491.82,0.0003863,120]
[336491562,1724877269327,-500.0,0.0003863,120]
[336491563,1724877269356,-500.0,0.0003863,120]
[336491564,1724877269386,-505.44,0.0003863,120]
[336491565,1724877269422,-543.62,0.0003863,120]
[336491566,1724877269452,-686.82,0.0003863,120]
[336491567,1724877269482,-802.66,0.0003863,120]
[336491568,1724877269512,-958.67,0.0003863,120]
[336491569,1724877269542,-500.0,0.0003863,120]
[336491570,1724877269571,-500.0,0.0003863,120]
[336491571,1724877269601,-3862.48,0.0003863,120]
[336491572,1724877269632,-500.0,0.0003863,120]
[336491573,1724877269664,-3416.11,0.0003863,120]
[336491574,1724877269694,-1090.54,0.0003863,120]
[336491575,1724877269727,-500.0,0.0003863,120]
[336491576,1724877269762,-227.00550614,0.0003863,120]
[336491577,1724877269794,-4775.08,0.0003863,120]
[336491578,1724877269824,-500.0,0.0003863,120]
[336491579,1724877269854,-500.0,0.0003863,120]
[336491580,1724877269885,-500.0,0.0003863,120]
[336491581,1724877269919,-500.0,0.0003863,120]
[336491582,1724877269951,-500.0,0.0003863,120]
[336491583,1724877269983,-677.48,0.0003863,120]
[336491584,1724877270013,-1972.42,0.0003863,120]
[336491585,1724877270044,-500.0,0.0003863,120]
[336491586,1724877270075,-737.2,0.0003863,120]
[336491587,1724877270105,-500.0,0.0003863,120]
[336491588,1724877270135,-600.0,0.0003863,120]
[336491589,1724877270168,-837.17,0.0003863,120]
[336491590,1724877270199,-2697.48,0.0003863,120]
[336491591,1724877270230,-6496.4,0.0003863,120]
[336491592,1724877270260,-566.05,0.0003863,120]
[336491593,1724877270291,-559.85,0.0003863,120]
[336491594,1724877270322,-1623.8,0.0003863,120]
[336491595,1724877270355,-500.0,0.0003863,120]
[336491596,1724877270388,-500.0,0.0003863,120]
[336491597,1724877270422,-1191.24,0.0003863,120]
[336491598,1724877270453,-3428.78,0.0003863,120]
[336491599,1724877270483,-500.0,0.0003863,120]
[336491600,1724877270513,-1840.85,0.0003863,120]
[336491601,1724877270543,-500.0,0.0003863,120]
[336491602,1724877270572,-500.0,0.0003863,120]
[336491603,1724877270603,-500.0,0.0003863,120]
[336491604,1724877270633,-500.0,0.0003863,120]
[336491605,1724877270664,-500.0,0.0003863,120]
[336491606,1724877270695,-793.28,0.0003863,120]
[336491607,1724877270725,-500.0,0.0003863,120]
[336491608,1724877270755,-734.76,0.0003863,120]
[336491609,1724877270785,-1742.35,0.0003863,120]
[336491610,1724877270814,-1062.68,0.0003863,120]
[336491611,1724877270844,-500.0,0.0003863,120]
[336491612,1724877270873,-500.0,0.0003863,120]
[336491613,1724877270904,-2363.57,0.0003863,120]
[336491614,1724877270939,-500.0,0.0003863,120]
[336491615,1724877270971,-842.77,0.0003863,120]
[336491616,1724877271003,-500.0,0.0003863,120]
[336491617,1724877271033,-566.9,0.0003863,120]
[336491618,1724877271064,-2246.55,0.0003863,120]
[336491619,1724877271095,-500.0,0.0003863,120]
[336491620,1724877271128,-500.0,0.0003863,120]
[336491621,1724877271157,-500.0,0.0003863,120]
[336491622,1724877271190,-889.72,0.0003863,120]
[336491623,1724877271221,-352.62059557,0.0003863,120]
[336491624,1724877271251,-626.04,0.0003863,120]
[336491625,1724877271283,-511.78808913,0.0003863,120]
[336491626,1724877271318,-1663.62,0.0003863,120]
[336491627,1724877271349,-500.0,0.0003863,120]
[336491628,1724877271382,-500.0,0.0003863,120]
[336491629,1724877271415,-827.96,0.0003863,120]
[336491630,1724877271446,-186.35,0.0003863,120]
[336491631,1724877271477,-1610.07,0.0003863,120]
[336491632,1724877271508,-1175.19,0.0003863,120]
[336491633,1724877271538,-1467.33,0.0003863,120]
[336491634,1724877271569,-2660.37,0.0003863,120]
[336491635,1724877271599,-500.0,0.0003863,120]
[336491636,1724877271629,-150.0,0.0003863,120]
[336491637,1724877271865,-1557.6,0.0003863,120]
[336491638,1724877271899,-881.92,0.0003863,120]
[336491639,1724877271939,-924.64,0.0003863,120]
[336491640,1724877271972,-500.0,0.0003863,120]
[336491641,1724877272003,-500.0,0.0003863,120]
[336491642,1724877272035,-500.0,0.0003863,120]
[336491643,1724877272065,-500.0,0.0003863,120]
[336491644,1724877272098,-500.0,0.0003863,120]
[336491645,1724877272131,-500.0,0.0003863,120]
[336491646,1724877272175,-500.0,0.0003863,90]
[336491647,1724877272209,-500.0,0.0003863,120]
[336491648,1724877272243,-1782.39,0.0003863,120]
[336491649,1724877272277,-1804.56,0.0003863,120]
[336491650,1724877272309,-150.0,0.0003863,120]
[336491651,1724877272343,-500.0,0.0003863,120]
[336491652,1724877272376,-500.0,0.0003863,120]
[336491653,1724877272410,-1509.86,0.0003863,120]
[336491654,1724877272452,-500.0,0.0003863,120]
[336491655,1724877272484,-500.0,0.0003863,120]
[336491656,1724877272517,-500.0,0.0003863,120]
[336491657,1724877272551,-2345.6,0.0003863,120]
[336491658,1724877272584,-673.89,0.0003863,120]
[336491659,1724877272617,-500.0,0.0003863,120]
[336491660,1724877272651,-500.0,0.0003863,120]
[336491661,1724877272688,-500.0,0.0003863,120]
[336491662,1724877272719,-500.0,0.0003863,120]
[336491663,1724877272751,-1378.57,0.0003863,120]
[336491664,1724877272783,-1092.14,0.0003863,120]
[336491665,1724877272818,-500.0,0.0003863,120]
[336491666,1724877272850,-1145.74,0.0003863,120]
[336491667,1724877272882,-500.0,0.0003863,120]
[336491668,1724877272913,-500.0,0.0003863,120]
[336491669,1724877272956,-3319.36,0.0003863,120]
[336491670,1724877272988,-5000.0,0.0003863,120]
[336491671,1724877273022,-1194.86,0.0003863,120]
[336491672,1724877273058,-500.0,0.0003863,120]
[336491673,1724877273098,-500.0,0.0003863,120]
[336491674,1724877273132,-500.0,0.0003863,120]
[336491675,1724877273168,-500.0,0.0003863,120]
[336491676,1724877273201,-500.0,0.0003863,120]
[336491677,1724877273235,-500.0,0.0003863,120]
[336491678,1724877273271,-2106.49,0.0003863,120]
[336491679,1724877273307,-2013.62,0.0003863,120]
[336491680,1724877273342,-500.0,0.0003863,120]
[336491681,1724877273377,-516.91565888,0.0003863,120]
[336491682,1724877273411,-500.0,0.0003863,120]
[336491683,1724877273447,-500.0,0.0003863,120]
[336491684,1724877273479,-4056.51,0.0003863,120]
[336491685,1724877273514,-3000.0,0.0003863,120]
[336491686,1724877273547,-2941.73,0.0003863,120]
[336491687,1724877273579,-500.0,0.0003863,120]
[336491688,1724877273613,-824.49,0.0003863,120]
[336491689,1724877273646,-500.0,0.0003863,120]
[336491690,1724877273679,-500.0,0.0003863,120]
[336491691,1724877273713,-500.0,0.0003863,120]
[336491692,1724877273747,-500.0,0.0003863,120]
[336491693,1724877273781,-3228.93,0.0003863,120]
[336491694,1724877273814,-1565.21,0.0003863,120]
[336491695,1724877273848,-1049.5,0.0003863,120]
[336491696,1724877273883,-339.96710642,0.0003863,120]
[336491697,1724877273919,-500.0,0.0003863,120]
[336491698,1724877273956,-500.0,0.0003863,120]
[336491699,1724877273990,-1755.71,0.0003863,120]
[336491700,1724877274024,-2768.5,0.0003863,120]
[336491701,1724877274057,-1143.49,0.0003863,120]
[336491702,1724877274091,-548.09,0.0003863,120]
[336491703,1724877274146,-3467.61,0.0003863,120]
[336491704,1724877274203,-500.0,0.0003863,120]
[336491705,1724877274260,-490.63,0.0003863,120]
[336491706,1724877274303,-502.85227468,0.0003863,120]
[336491707,1724877274339,-4899.84,0.0003863,120]
[336491708,1724877274372,-1119.25,0.0003863,120]
[336491709,1724877274406,-1733.65,0.0003863,120]
[336491710,1724877274443,-1662.57,0.0003863,120]
[336491711,1724877274475,-507.18631515,0.0003863,120]
[336491712,1724877274508,-500.0,0.0003863,120]
[336491713,1724877274539,-500.0,0.0003863,120]
[336491714,1724877274572,-500.0,0.0003863,120]
[336491715,1724877274602,-500.0,0.0003863,120]
[336491716,1724877274634,-500.0,0.0003863,120]
[336491717,1724877274669,-500.0,0.0003863,120]
[336491718,1724877274701,-1679.88,0.0003863,120]
[336491719,1724877274735,-4180.39,0.0003863,120]
[336491720,1724877274768,-586.13208473,0.0003863,120]
[336491721,1724877274799,-500.0,0.0003863,120]
[336491722,1724877274830,-3894.15,0.0003863,120]
[336491723,1724877274863,-500.0,0.0003863,120]
[336491724,1724877274895,-500.0,0.0003863,120]
[336491725,1724877274928,-3379.59,0.0003863,120]
[336491726,1724877274961,-1311.71,0.0003863,120]
[336491727,1724877274995,-500.0,0.0003863,120]
[336491728,1724877275028,-1991.18,0.0003863,120]
[336491729,1724877275061,-4120.22,0.0003863,120]
[336491730,1724877275093,-1335.59,0.0003863,120]
[336491731,1724877275124,-500.0,0.0003863,120]
[336491732,1724877275154,-500.0,0.0003863,120]
[336491733,1724877275186,-739.33,0.0003863,120]
[336491734,1724877275217,-500.0,0.0003863,120]
[336491735,1724877275247,-2497.78,0.0003863,120]
[336491736,1724877275277,-500.0,0.0003863,120]
[336491737,1724877275309,-582.47,0.0003863,120]
[336491738,1724877275341,-979.05,0.0003863,120]
[336491739,1724877275372,-500.0,0.0003863,120]
[336491740,1724877275403,-500.0,0.0003863,120]
[336491741,1724877275642,-530.60092569,0.0003863,120]
[336491742,1724877275679,-500.0,0.0003863,120]
[336491743,1724877275713,-500.0,0.0003863,120]
[336491744,1724877275749,-678.79,0.0003863,120]
[336491745,1724877275781,-2351.67,0.0003863,120]
[336491746,1724877275814,-2377.21,0.0003863,120]
[336491747,1724877275848,-500.0,0.0003863,120]
[336491748,1724877275882,-1532.37,0.0003863,120]
[336491749,1724877275923,-500.0,0.0003863,120]
[336491750,1724877275964,-504.27894748,0.0003863,120]
[336491751,1724877275997,-550.15,0.0003863,120]
[336491752,1724877276030,-500.0,0.0003863,120]
[336491753,1724877276063,-1642.06,0.0003863,120]
[336491754,1724877276098,-500.0,0.0003863,120]
[336491755,1724877276131,-2059.24,0.0003863,120]
[336491756,1724877276166,-1523.17,0.0003863,120]
[336491757,1724877276202,-500.0,0.0003863,120]
[336491758,1724877276236,-500.0,0.0003863,120]
[336491759,1724877276268,-973.03,0.0003863,120]
[336491760,1724877276302,-3335.68,0.0003863,120]
[336491761,1724877276337,-500.0,0.0003863,120]
[336491762,1724877276370,-1885.57,0.0003863,120]
[336491763,1724877276404,-500.0,0.0003863,120]
[336491764,1724877276439,-500.0,0.0003863,120]
[336491765,1724877276471,-500.17090029,0.0003863,120]
[336491766,1724877276503,-500.0,0.0003863,120]
[336491767,1724877276535,-500.0,0.0003863,120]
[336491768,1724877276567,-751.57,0.0003863,120]
[336491769,1724877276601,-500.0,0.0003863,120]
[336491770,1724877276635,-500.0,0.0003863,120]
[336491771,1724877276668,-500.0,0.0003863,120]
[336491772,1724877276699,-706.58,0.0003863,120]
[336491773,1724877276732,-500.0,0.0003863,120]
[336491774,1724877276763,-500.0,0.0003863,120]
[336491775,1724877276794,-558.78,0.0003863,120]
[336491776,1724877276825,-2205.78,0.0003863,120]
[336491777,1724877276858,-500.0,0.0003863,120]
[336491778,1724877276888,-500.0,0.0003863,120]
[336491779,1724877276923,-2387.48,0.0003863,120]
[336491780,1724877276955,-500.0,0.0003863,120]
[336491781,1724877276986,-1369.69,0.0003863,120]
[336491782,1724877277017,-513.92755651,0.0003863,120]
[336491783,1724877277047,-500.0,0.0003863,120]
[336491784,1724877277079,-1086.45,0.0003863,120]
[336491785,1724877277110,-751.52,0.0003863,120]
[336491786,1724877277140,-500.0,0.0003863,120]
[336491787,1724877277174,-500.0,0.0003863,120]
[336491788,1724877277204,-2354.01,0.0003863,120]
[336491789,1724877277237,-500.0,0.0003863,120]
[336491790,1724877277271,-500.0,0.0003863,120]
[336491791,1724877277301,-500.0,0.0003863,120]
[336491792,1724877277338,-1658.34,0.0003863,120]
[336491793,1724877277372,-1234.0,0.0003863,120]
[336491794,1724877277403,-500.0,0.0003863,120]
[336491795,1724877277438,-500.0,0.0003863,120]
[336491796,1724877277471,-500.0,0.0003863,120]
[336491797,1724877277503,-500.0,0.0003863,120]
[336491798,1724877277536,-685.52,0.0003863,120]
[336491799,1724877277569,-2029.02,0.0003863,120]
[336491800,1724877277602,-500.0,0.0003863,120]
[336491801,1724877277636,-500.0,0.0003863,120]
[336491802,1724877277671,-500.0,0.0003863,120]
[336491803,1724877277702,-500.0,0.0003863,120]
[336491804,1724877277734,-1023.89,0.0003863,120]
[336491805,1724877277766,-500.0,0.0003863,120]
[336491806,1724877277799,-971.57,0.0003863,120]
[336491807,1724877277835,-763.91,0.0003863,120]
[336491808,1724877277868,-5515.45,0.0003863,120]
[336491809,1724877277905,-500.0,0.0003863,120]
[336491810,1724877277941,-500.0,0.0003863,120]
[336491811,1724877277976,-500.0,0.0003863,120]
[336491812,1724877278009,-3327.24,0.0003863,120]
[336491813,1724877278042,-551.98,0.0003863,120]
[336491814,1724877278075,-567.98,0.0003863,120]
[336491815,1724877278110,-2093.29,0.0003863,120]
[336491816,1724877278144,-500.0,0.0003863,120]
[336491817,1724877278178,-637.76,0.0003863,120]
[336491818,1724877278210,-500.0,0.0003863,120]
[336491819,1724877278242,-500.0,0.0003863,120]
[336491820,1724877278274,-835.36,0.0003863,120]
[336491821,1724877278308,-665.08,0.0003863,120]
[336491822,1724877278341,-3943.39,0.0003863,120]
[336491823,1724877278375,-500.0,0.0003863,120]
[336491824,1724877278411,-837.27,0.0003863,120]
[336491825,1724877278449,-838.13,0.0003863,120]
[336491826,1724877278481,-2950.06,0.0003863,120]
[336491827,1724877278515,-1676.84,0.0003863,120]
[336491828,1724877278547,-1096.71,0.0003863,120]
[336491829,1724877278579,-500.0,0.0003863,120]
[336491830,1724877278614,-3299.63,0.0003863,120]
[336491831,1724877278647,-500.0,0.0003863,120]
[336491832,1724877278680,-520.70780286,0.0003863,120]
[336491833,1724877278714,-546.5694069,0.0003863,120]
[336491834,1724877278747,-928.58,0.0003863,120]
[336491835,1724877278781,-2467.32,0.0003863,120]
[336491836,1724877278816,-3079.68,0.0003863,120]
[336491837,1724877278848,-500.0,0.0003863,120]
[336491838,1724877278881,-523.78287816,0.0003863,120]
[336491839,1724877278915,-1696.78,0.0003863,120]
[336491840,1724877278950,-293.50935255,0.0003863,120]
[336491841,1724877278983,-500.0,0.0003863,120]
[336491842,1724877279023,-959.26,0.0003863,120]
[336491843,1724877279055,-590.71469023,0.0003863,120]
[336491844,1724877279095,-3188.88,0.0003863,120]
[336491845,1724877279327,-500.0,0.0003863,120]
[336491846,1724877279374,-500.0,0.0003863,120]
[336491847,1724877279408,-500.0,0.0003863,120]
[336491848,1724877279448,-500.0,0.0003863,120]
[336491849,1724877279480,-2842.31,0.0003863,120]
[336491850,1724877279511,-500.0,0.0003863,120]
[336491851,1724877279542,-761.77,0.0003863,120]
[336491852,1724877279574,-500.0,0.0003863,120]
[336491853,1724877279608,-500.0,0.0003863,120]
[336491854,1724877279644,-750.46,0.0003863,120]
[336491855,1724877279676,-500.0,0.0003863,120]
[336491856,1724877279708,-807.75,0.0003863,120]
[336491857,1724877279740,-500.0,0.0003863,120]
[336491858,1724877279773,-500.0,0.0003863,120]
[336491859,1724877279805,-500.0,0.0003863,120]
[336491860,1724877279837,-500.0,0.0003863,120]
[336491861,1724877279870,-859.46,0.0003863,120]
[336491862,1724877279905,-3921.9,0.0003863,120]
[336491863,1724877279941,-500.0,0.0003863,120]
[336491864,1724877279975,-500.0,0.0003863,120]